fUSD/lending_fUSD_20240817
["ID","MTS","AMOUNT","RATE_DAILY","PERIOD"]
[335129713,1723876695184,297.6358312,9.943e-05,2]
[335129714,1723876700695,628.70277812,9.943e-05,2]
[335129715,1723876740737,440.29975654,9.943e-05,2]
[335129717,1723876796064,1000.0,9.684e-05,2]
[335129718,1723876820360,155.0,8.219e-05,2]
[335129719,1723876850702,5403.79429818,9.943e-05,2]
[335129720,1723876870898,601.03638076,9.943e-05,2]
[335129721,1723876882432,161.72416049,9.943e-05,2]
[335129725,1723876921043,155.08359118,9.943e-05,2]
[335129729,1723877125634,360.0,9.648e-05,2]
[335129732,1723877195308,222.54660068,9.943e-05,2]
[335129733,1723877195423,349.5815431,9.943e-05,2]
[335129751,1723877302168,155.0,8.219e-05,2]
[335129754,1723877349080,15483.10746637,9.943e-05,2]
[335129777,1723877364554,200.0,9.648e-05,2]
[335129778,1723877404330,-711.16622125,9.999e-05,2]
[335129785,1723877432182,-427.95554435,9.999e-05,2]
[335129786,1723877432192,-197.1552014,9.999e-05,2]
[335129787,1723877432202,-380.51090251,9.999e-05,2]
[335129788,1723877432212,-347.51379482,9.999e-05,2]
[335129789,1723877432223,-550.0,0.0001,2]
[335129790,1723877432233,-328.2488375,0.0001,2]
[335129791,1723877432244,-155.45612317,0.00010009,2]
[335129792,1723877432254,-155.0,0.00010097,2]
[335129793,1723877432264,-1158.0,0.000102,2]
[335129794,1723877432277,-300.0,0.00010449,2]
[335129795,1723877432286,-300.0,0.00010449,2]
[335129796,1723877432296,-708.46851532,0.0001045,2]
[335129797,1723877432321,-560.30225468,0.0001045,2]
[335129798,1723877432330,-2454.7959,0.0001045,2]
[335129799,1723877432340,-378.84321177,0.0001046,2]
[335129800,1723877432353,-689.30241408,0.0001046,2]
[335129802,1723877432365,-200.62514415,0.0001046,2]
[335129804,1723877432374,-449.78292999,0.00010471,2]
[335129807,1723877438104,-290.305015,0.00010471,2]
[335129808,1723877438115,-1762.49771502,0.00010471,2]
[335129809,1723877438124,-200.25598254,0.00010471,2]
[335129810,1723877438134,-3877.17064099,0.00010471,2]
[335129811,1723877438143,-485.4249704,0.00010471,2]
[335129812,1723877438153,-150.0,0.00010549,2]
[335129813,1723877438163,-250000.0,0.0001055,2]
[335129814,1723877438172,-5334.18870518,0.00010553,2]
[335129815,1723877438181,-162.7975553,0.00010556,2]
[335129816,1723877438191,-197.76909783,0.00010556,2]
[335129817,1723877438201,-269.10437,0.00010556,2]
[335129818,1723877438211,-2303.24,0.0001057,2]
[335129819,1723877438220,-155.0,0.00010582,2]
[335129820,1723877438230,-735.43153645,0.00010584,2]
[335129821,1723877438239,-340.1822795,0.00010584,2]
[335129822,1723877438249,-735.43153645,0.00010618,2]
[335129823,1723877438259,-151.7159085,0.00010649,2]
[335129824,1723877438272,-735.43153645,0.00010652,2]
[335129825,1723877438282,-3237.1381,0.00010654,2]
[335129826,1723877438292,-16310.49128502,0.0001068,2]
[335129827,1723877438301,-268.27110458,0.00010681,2]
[335129828,1723877438312,-500.0,0.00010684,2]
[335129829,1723877438322,-506.23984998,0.00010684,2]
[335129830,1723877438331,-500.0,0.00010684,2]
[335129831,1723877438340,-500.0,0.00010684,2]
[335129832,1723877438351,-500.0,0.00010684,2]
[335129833,1723877438360,-507.62574702,0.00010684,2]
[335129834,1723877438370,-500.0,0.00010684,2]
[335129835,1723877438379,-1685.68,0.00010684,2]
[335129836,1723877438388,-500.0,0.00010684,2]
[335129837,1723877438397,-1729.47,0.00010684,2]
[335129838,1723877438407,-500.0,0.00010684,2]
[335129839,1723877438416,-2508.52,0.00010684,2]
[335129840,1723877438426,-1293.79,0.00010684,2]
[335129841,1723877438436,-2569.91,0.00010684,2]
[335129842,1723877438445,-1141.97,0.00010684,2]
[335129844,1723877438455,-500.0,0.00010684,2]
[335129845,1723877438464,-500.0,0.00010684,2]
[335129847,1723877438474,-2202.22,0.00010684,2]
[335129849,1723877438484,-4769.43,0.00010684,2]
[335129851,1723877438494,-500.0,0.00010684,2]
[335129852,1723877438503,-2824.86,0.00010684,2]
[335129853,1723877438523,-500.0,0.00010684,2]
[335129854,1723877438532,-500.0,0.00010684,2]
[335129855,1723877438542,-500.0,0.00010684,2]
[335129856,1723877438551,-500.0,0.00010684,2]
[335129857,1723877438561,-500.0,0.00010684,2]
[335129858,1723877438571,-500.0,0.00010684,2]
[335129859,1723877438580,-368.48549701,0.00010684,2]
[335129860,1723877438589,-500.0,0.00010684,2]
[335129861,1723877438599,-500.0,0.00010684,2]
[335129862,1723877438608,-6462.7,0.00010684,2]
[335129863,1723877438618,-500.97531824,0.00010684,2]
[335129864,1723877438626,-500.0,0.00010684,2]
[335129865,1723877438635,-500.0,0.00010684,2]
[335129866,1723877438645,-500.0,0.00010684,2]
[335129867,1723877438654,-2871.14,0.00010684,2]
[335129868,1723877438663,-14372.5,0.00010684,2]
[335129869,1723877438672,-500.0,0.00010684,2]
[335129870,1723877438682,-500.0,0.00010684,2]
[335129871,1723877438691,-500.0,0.00010684,2]
[335129872,1723877438701,-425.02009811,0.00010684,2]
[335129873,1723877438711,-500.0,0.00010684,2]
[335129874,1723877438721,-500.0,0.00010684,2]
[335129875,1723877438730,-11115.08,0.00010684,2]
[335129876,1723877438741,-2814.62,0.00010684,2]
[335129877,1723877438750,-753.45,0.00010684,2]
[335129878,1723877438761,-500.0,0.00010684,2]
[335129879,1723877438770,-39028.21032665,0.00010684,2]
[335129880,1723877438807,-1024.42347234,0.00010684,2]
[335129881,1723877438819,-11475.13620101,0.00010684,2]
[335129882,1723877438829,-11283.37,0.00010684,2]
[335129883,1723877438839,-4063.72,0.00010684,2]
[335129884,1723877438849,-500.0,0.00010684,2]
[335129885,1723877438858,-818.37,0.00010684,2]
[335129886,1723877438868,-3964.49,0.00010684,2]
[335129887,1723877438878,-500.0,0.00010684,2]
[335129888,1723877438888,-500.0,0.00010684,2]
[335129889,1723877438897,-500.0,0.00010684,2]
[335129890,1723877438907,-500.0,0.00010684,2]
[335129891,1723877438916,-500.0,0.00010684,2]
[335129892,1723877438926,-500.0,0.00010684,2]
[335129893,1723877438936,-500.0,0.00010684,2]
[335129894,1723877438946,-2868.45,0.00010684,2]
[335129895,1723877438956,-500.0,0.00010684,2]
[335129896,1723877438966,-500.0,0.00010684,2]
[335129897,1723877438975,-891.89084894,0.00010684,2]
[335129898,1723877438987,-296.423282,0.00010684,2]
[335129906,1723877444285,-1832.27586906,0.00010684,2]
[335129908,1723877444294,-819.67287752,0.00010684,2]
[335129910,1723877444311,-2223.97744248,0.00010684,2]
[335129913,1723877444878,-1066.32182804,0.00010684,2]
[335129922,1723877446222,-648.55391548,0.00010684,2]
[335129927,1723877472258,13509.6,9.811e-05,2]
[335129929,1723877594358,186.66,9.794e-05,2]
[335129930,1723877787463,154.86,8.219e-05,2]
[335129931,1723877828863,840.0,9.7e-05,2]
[335129932,1723877858245,357.4813523,9.943e-05,2]
[335129933,1723877887305,264.51117711,9.962e-05,2]
[335129934,1723877911639,892.72350459,9.943e-05,2]
[335129935,1723878028754,249.76901839,9.943e-05,2]
[335129936,1723878072942,186.68,9.708e-05,2]
[335129937,1723878098602,155.0,9.943e-05,2]
[335129938,1723878101274,440.29975654,9.943e-05,2]
[335129939,1723878197500,619.58566799,9.943e-05,2]
[335129940,1723878309115,328.0,9.758e-05,2]
[335129941,1723878320809,150.0,9.592e-05,2]
[335129942,1723878337379,154.86,8.219e-05,2]
[335129943,1723878389804,753.97,0.00021,120]
[335129944,1723878413008,197.1552014,9.962e-05,2]
[335130030,1723878565725,186.68,9.73e-05,2]
[335130045,1723878632308,-550.0,0.0001,2]
[335130046,1723878632319,-485.4249704,0.00010026,2]
[335130047,1723878632328,-380.51090251,0.00010026,2]
[335130048,1723878632338,-367.9111147,0.00010097,2]
[335130049,1723878632348,-649.92257342,0.00010097,2]
[335130050,1723878632357,-1298.34223089,0.00010097,2]
[335130051,1723878632367,-300.0,0.00010349,2]
[335130052,1723878632377,-3314.5799,0.0001035,2]
[335130053,1723878632387,-801.5619,0.0001035,2]
[335130054,1723878632397,-3766.8669,0.0001035,2]
[335130055,1723878632406,-150.0,0.00010449,2]
[335130056,1723878632416,-1266.0953,0.0001045,2]
[335130057,1723878632427,-500.0,0.0001045,2]
[335130058,1723878632437,-16588.73369852,0.0001045,2]
[335130059,1723878632449,-2900.0,0.0001045,2]
[335130060,1723878632461,-879.10474761,0.0001045,2]
[335130061,1723878632477,-396.27081222,0.0001045,2]
[335130062,1723878632488,-378.25609224,0.0001045,2]
[335130063,1723878632505,-1070.57254291,0.0001045,2]
[335130064,1723878632516,-1728.39618865,0.0001045,2]
[335130065,1723878632531,-429.8742519,0.0001045,2]
[335130066,1723878632543,-1300.99,0.0001045,2]
[335130072,1723878638441,-3000.0,0.0001045,2]
[335130073,1723878638452,-1000.0,0.0001045,2]
[335130074,1723878638465,-11482.79736595,0.0001045,2]
[335130075,1723878638474,-110461.8529,0.0001045,2]
[335130076,1723878638484,-1828.9195,0.0001045,2]
[335130077,1723878638493,-2500.0,0.0001045,2]
[335130078,1723878638503,-155.0,0.00010471,2]
[335130079,1723878638512,-225590.56518844,0.0001055,2]
[335130080,1723878638523,-845.84718,0.0001058,2]
[335130081,1723878638532,-224.25364,0.0001058,2]
[335130082,1723878638542,-368.56973836,0.00010584,2]
[335130083,1723878638551,-392.2736732,0.00010584,2]
[335130084,1723878638560,-150.0,0.00010608,2]
[335130085,1723878638569,-368.56973834,0.00010618,2]
[335130086,1723878638578,-368.56973834,0.00010651,2]
[335130087,1723878638589,-1407.81739002,0.00010681,2]
[335130088,1723878638598,-1141.56666376,0.00010681,2]
[335130089,1723878638608,-574.0,0.00010684,2]
[335130090,1723878638619,-165.07671948,0.00010684,2]
[335130091,1723878638628,-500.0,0.00010684,2]
[335130092,1723878638639,-528.38764698,0.00010684,2]
[335130093,1723878638649,-500.0,0.00010684,2]
[335130094,1723878638658,-500.0,0.00010684,2]
[335130095,1723878638668,-204.39879419,0.00010684,2]
[335130096,1723878638677,-500.0,0.00010684,2]
[335130097,1723878638687,-500.0,0.00010684,2]
[335130098,1723878638696,-301.31311688,0.00010684,2]
[335130099,1723878638705,-500.0,0.00010684,2]
[335130100,1723878638715,-304.92166594,0.00010684,2]
[335130101,1723878638724,-500.194366,0.00010684,2]
[335130102,1723878638734,-507.69055429,0.00010684,2]
[335130103,1723878638743,-500.0,0.00010684,2]
[335130104,1723878638753,-504.62273487,0.00010684,2]
[335130105,1723878638762,-508.8215607,0.00010684,2]
[335130107,1723878638771,-507.28577219,0.00010684,2]
[335130108,1723878638780,-2000.0,0.00010684,2]
[335130109,1723878638789,-200.0,0.00010684,2]
[335130110,1723878638798,-500.0,0.00010684,2]
[335130111,1723878638807,-500.0,0.00010684,2]
[335130112,1723878638816,-500.0,0.00010684,2]
[335130113,1723878638825,-500.0,0.00010684,2]
[335130114,1723878638835,-500.0,0.00010684,2]
[335130115,1723878638844,-500.0,0.00010684,2]
[335130116,1723878638853,-507.56793141,0.00010684,2]
[335130117,1723878638862,-502.61663719,0.00010684,2]
[335130118,1723878638871,-500.0,0.00010684,2]
[335130119,1723878638881,-500.0,0.00010684,2]
[335130120,1723878638890,-506.11616708,0.00010684,2]
[335130121,1723878638899,-333.06517696,0.00010684,2]
[335130122,1723878638908,-500.0,0.00010684,2]
[335130123,1723878638917,-504.15795889,0.00010684,2]
[335130124,1723878638927,-500.0,0.00010684,2]
[335130125,1723878638936,-500.0,0.00010684,2]
[335130126,1723878638945,-505.02622228,0.00010684,2]
[335130127,1723878638955,-1508.73,0.00010684,2]
[335130128,1723878638964,-1508.73,0.00010684,2]
[335130129,1723878638973,-508.69717446,0.00010684,2]
[335130130,1723878638983,-508.62224011,0.00010684,2]
[335130131,1723878638992,-504.42975319,0.00010684,2]
[335130132,1723878639001,-500.0,0.00010684,2]
[335130133,1723878639010,-546.55436804,0.00010684,2]
[335130134,1723878639019,-504.9686087,0.00010684,2]
[335130135,1723878639028,-500.0,0.00010684,2]
[335130136,1723878639037,-517.22307314,0.00010684,2]
[335130137,1723878639046,-500.0,0.00010684,2]
[335130138,1723878639056,-500.0,0.00010684,2]
[335130139,1723878639065,-504.82678563,0.00010684,2]
[335130140,1723878639074,-505.26962911,0.00010684,2]
[335130141,1723878639083,-504.42731123,0.00010684,2]
[335130142,1723878639094,-500.0,0.00010684,2]
[335130143,1723878639107,-500.0,0.00010684,2]
[335130144,1723878639119,-366.97408956,0.00010684,2]
[335130145,1723878639129,-500.0,0.00010684,2]
[335130146,1723878639138,-500.0,0.00010684,2]
[335130147,1723878639148,-500.0,0.00010684,2]
[335130148,1723878639157,-506.36757679,0.00010684,2]
[335130149,1723878639166,-500.0,0.00010684,2]
[335130150,1723878639177,-502.77250594,0.00010684,2]
[335130151,1723878639186,-500.0,0.00010684,2]
[335130152,1723878639195,-502.30371412,0.00010684,2]
[335130153,1723878639205,-500.0,0.00010684,2]
[335130154,1723878639215,-502.70015658,0.00010684,2]
[335130155,1723878639224,-500.0,0.00010684,2]
[335130156,1723878639235,-501.89293628,0.00010684,2]
[335130157,1723878639245,-500.0,0.00010684,2]
[335130158,1723878639514,-583.34589047,0.00010684,2]
[335130159,1723878639525,-294.40954561,0.00010684,2]
[335130160,1723878639534,-505.4690632,0.00010684,2]
[335130161,1723878639544,-502.51889148,0.00010684,2]
[335130162,1723878639553,-502.95948008,0.00010684,2]
[335130163,1723878639563,-500.0,0.00010684,2]
[335130164,1723878639572,-500.0,0.00010684,2]
[335130165,1723878639581,-500.0,0.00010684,2]
[335130166,1723878639590,-504.39210273,0.00010684,2]
[335130167,1723878639601,-503.40520282,0.00010684,2]
[335130168,1723878639610,-518.03694051,0.00010684,2]
[335130169,1723878639620,-505.56667056,0.00010684,2]
[335130170,1723878639629,-511.77074743,0.00010684,2]
[335130171,1723878639640,-502.6774611,0.00010684,2]
[335130172,1723878639650,-501.9013273,0.00010684,2]
[335130173,1723878639661,-502.65307054,0.00010684,2]
[335130174,1723878639670,-505.82403627,0.00010684,2]
[335130175,1723878639680,-502.52934277,0.00010684,2]
[335130176,1723878639689,-500.0,0.00010684,2]
[335130177,1723878639699,-366.62204813,0.00010684,2]
[335130178,1723878639709,-500.81296504,0.00010684,2]
[335130179,1723878639718,-501.63283497,0.00010684,2]
[335130180,1723878639727,-526.23178319,0.00010684,2]
[335130181,1723878639737,-504.38811227,0.00010684,2]
[335130182,1723878639746,-506.03346055,0.00010684,2]
[335130183,1723878639757,-500.0,0.00010684,2]
[335130184,1723878639766,-515.62842242,0.00010684,2]
[335130185,1723878639776,-500.0,0.00010684,2]
[335130186,1723878639785,-500.0,0.00010684,2]
[335130187,1723878639794,-506.79887381,0.00010684,2]
[335130188,1723878639803,-505.85646801,0.00010684,2]
[335130189,1723878639812,-500.0,0.00010684,2]
[335130190,1723878639823,-500.0,0.00010684,2]
[335130191,1723878639832,-514.95137833,0.00010684,2]
[335130192,1723878639842,-524.26766797,0.00010684,2]
[335130193,1723878639851,-500.0,0.00010684,2]
[335130194,1723878639862,-500.0,0.00010684,2]
[335130195,1723878639871,-458.70969558,0.00010684,2]
[335130196,1723878639881,-500.0,0.00010684,2]
[335130197,1723878639890,-500.0,0.00010684,2]
[335130198,1723878639899,-508.06273687,0.00010684,2]
[335130199,1723878639909,-266.3900975,0.00010684,2]
[335130200,1723878639919,-500.0,0.00010684,2]
[335130201,1723878639928,-500.0,0.00010684,2]
[335130202,1723878639937,-496.34613402,0.00010684,2]
[335130203,1723878639946,-506.69459018,0.00010684,2]
[335130204,1723878639955,-502.88151253,0.00010684,2]
[335130205,1723878639964,-505.26481991,0.00010684,2]
[335130206,1723878639973,-500.0,0.00010684,2]
[335130207,1723878639983,-294.23323143,0.00010684,2]
[335130208,1723878639992,-500.0,0.00010684,2]
[335130209,1723878640002,-471.04441171,0.00010684,2]
[335130210,1723878640012,-500.0,0.00010684,2]
[335130211,1723878640021,-500.0,0.00010684,2]
[335130212,1723878640031,-500.0,0.00010684,2]
[335130213,1723878640040,-399.57331641,0.00010684,2]
[335130214,1723878640049,-500.0,0.00010684,2]
[335130215,1723878640059,-479.82548089,0.00010684,2]
[335130216,1723878640068,-504.27079207,0.00010684,2]
[335130217,1723878640077,-500.0,0.00010684,2]
[335130218,1723878640086,-480.44905026,0.00010684,2]
[335130219,1723878640097,-505.02267763,0.00010684,2]
[335130220,1723878640106,-500.0,0.00010684,2]
[335130221,1723878640119,-500.0,0.00010684,2]
[335130222,1723878640129,-500.0,0.00010684,2]
[335130223,1723878640138,-500.0,0.00010684,2]
[335130224,1723878640148,-503.78787707,0.00010684,2]
[335130225,1723878640158,-500.0,0.00010684,2]
[335130226,1723878640168,-500.0,0.00010684,2]
[335130227,1723878640177,-2000.0,0.00010684,2]
[335130228,1723878640188,-200.0,0.00010684,2]
[335130229,1723878640198,-500.0,0.00010684,2]
[335130230,1723878640207,-500.0,0.00010684,2]
[335130231,1723878640216,-500.0,0.00010684,2]
[335130232,1723878640226,-500.0,0.00010684,2]
[335130233,1723878640235,-500.0,0.00010684,2]
[335130234,1723878640244,-500.0,0.00010684,2]
[335130235,1723878640253,-801.89,0.00010684,2]
[335130236,1723878640262,-801.89,0.00010684,2]
[335130237,1723878640271,-500.0,0.00010684,2]
[335130238,1723878640280,-500.0,0.00010684,2]
[335130239,1723878640289,-500.0,0.00010684,2]
[335130240,1723878640299,-500.0,0.00010684,2]
[335130241,1723878640308,-500.0,0.00010684,2]
[335130242,1723878640317,-500.0,0.00010684,2]
[335130243,1723878640327,-500.0,0.00010684,2]
[335130244,1723878640336,-500.0,0.00010684,2]
[335130245,1723878640345,-500.0,0.00010684,2]
[335130247,1723878640354,-504.66831919,0.00010684,2]
[335130248,1723878640363,-759.84,0.00010684,2]
[335130249,1723878640372,-759.84,0.00010684,2]
[335130250,1723878640381,-759.84,0.00010684,2]
[335130251,1723878640391,-500.0,0.00010684,2]
[335130252,1723878640400,-500.0,0.00010684,2]
[335130253,1723878640409,-1147.43,0.00010684,2]
[335130254,1723878640418,-1147.43,0.00010684,2]
[335130255,1723878640427,-1147.43,0.00010684,2]
[335130256,1723878640437,-500.0,0.00010684,2]
[335130257,1723878640446,-500.0,0.00010684,2]
[335130258,1723878640455,-1404.32,0.00010684,2]
[335130259,1723878640465,-500.0,0.00010684,2]
[335130260,1723878640474,-1404.32,0.00010684,2]
[335130261,1723878640483,-291.41670268,0.00010684,2]
[335130262,1723878640492,-1404.32,0.00010684,2]
[335130263,1723878640501,-504.44252925,0.00010684,2]
[335130264,1723878640511,-546.30364869,0.00010684,2]
[335130265,1723878640520,-513.37770294,0.00010684,2]
[335130266,1723878640529,-500.0,0.00010684,2]
[335130267,1723878640539,-500.0,0.00010684,2]
[335130268,1723878640548,-500.0,0.00010684,2]
[335130269,1723878640557,-1773.05,0.00010684,2]
[335130270,1723878640567,-503.37112286,0.00010684,2]
[335130271,1723878640576,-1773.05,0.00010684,2]
[335130272,1723878640586,-1773.05,0.00010684,2]
[335130273,1723878640596,-315.48505361,0.00010684,2]
[335130274,1723878640605,-500.0,0.00010684,2]
[335130275,1723878640614,-500.0,0.00010684,2]
[335130276,1723878640624,-500.0,0.00010684,2]
[335130277,1723878640633,-500.0,0.00010684,2]
[335130278,1723878640643,-500.0,0.00010684,2]
[335130279,1723878640653,-500.0,0.00010684,2]
[335130280,1723878640662,-500.0,0.00010684,2]
[335130281,1723878640672,-500.0,0.00010684,2]
[335130282,1723878640682,-451.92413355,0.00010684,2]
[335130283,1723878640691,-500.0,0.00010684,2]
[335130284,1723878640701,-511.19074314,0.00010684,2]
[335130285,1723878640710,-503.09821954,0.00010684,2]
[335130286,1723878640720,-500.0,0.00010684,2]
[335130287,1723878640729,-500.0,0.00010684,2]
[335130288,1723878640739,-500.0,0.00010684,2]
[335130289,1723878640748,-703.75,0.00010684,2]
[335130290,1723878640758,-703.75,0.00010684,2]
[335130291,1723878640767,-500.0,0.00010684,2]
[335130292,1723878640776,-703.75,0.00010684,2]
[335130293,1723878640786,-500.0,0.00010684,2]
[335130294,1723878640795,-500.0,0.00010684,2]
[335130295,1723878640807,-500.0,0.00010684,2]
[335130296,1723878640816,-500.0,0.00010684,2]
[335130297,1723878640825,-500.0,0.00010684,2]
[335130298,1723878640835,-500.0,0.00010684,2]
[335130299,1723878640844,-500.0,0.00010684,2]
[335130300,1723878640853,-500.0,0.00010684,2]
[335130301,1723878640862,-500.0,0.00010684,2]
[335130302,1723878640871,-500.0,0.00010684,2]
[335130303,1723878640880,-500.0,0.00010684,2]
[335130304,1723878640890,-500.0,0.00010684,2]
[335130305,1723878640901,-500.0,0.00010684,2]
[335130306,1723878640911,-631.01308385,0.00010684,2]
[335130307,1723878640921,-500.0,0.00010684,2]
[335130308,1723878640931,-451.53838325,0.00010684,2]
[335130309,1723878640990,-48.46161675,0.00010684,2]
[335130311,1723878641000,-500.0,0.00010684,2]
[335130313,1723878641009,-500.0,0.00010684,2]
[335130315,1723878641018,-500.0,0.00010684,2]
[335130317,1723878641029,-500.0,0.00010684,2]
[335130318,1723878641038,-635.99843286,0.00010684,2]
[335130319,1723878641047,-500.0,0.00010684,2]
[335130320,1723878641057,-223.39220882,0.00010684,2]
[335130321,1723878641069,-276.60779118,0.00010684,2]
[335130322,1723878641078,-500.0,0.00010684,2]
[335130323,1723878641088,-500.0,0.00010684,2]
[335130324,1723878641099,-500.0,0.00010684,2]
[335130325,1723878641109,-502.48934755,0.00010684,2]
[335130326,1723878641123,-500.0,0.00010684,2]
[335130327,1723878641132,-500.0,0.00010684,2]
[335130328,1723878641142,-500.0,0.00010684,2]
[335130329,1723878641151,-500.0,0.00010684,2]
[335130330,1723878641161,-500.0,0.00010684,2]
[335130331,1723878641170,-500.0,0.00010684,2]
[335130332,1723878641183,-500.0,0.00010684,2]
[335130333,1723878641192,-500.0,0.00010684,2]
[335130334,1723878641201,-500.0,0.00010684,2]
[335130335,1723878641210,-500.0,0.00010684,2]
[335130336,1723878641220,-500.0,0.00010684,2]
[335130337,1723878641230,-500.0,0.00010684,2]
[335130338,1723878641239,-500.0,0.00010684,2]
[335130339,1723878641248,-500.0,0.00010684,2]
[335130340,1723878641257,-631.6,0.00010684,2]
[335130341,1723878641266,-500.0,0.00010684,2]
[335130342,1723878641275,-3154.30286127,0.00010684,2]
[335130343,1723878641290,-1009.89713873,0.00010684,2]
[335130344,1723878641300,-538.50581664,0.00010684,2]
[335130345,1723878641310,-500.0,0.00010684,2]
[335130346,1723878641320,-500.0,0.00010684,2]
[335130347,1723878641329,-500.0,0.00010684,2]
[335130348,1723878641338,-500.0,0.00010684,2]
[335130349,1723878641347,-500.0,0.00010684,2]
[335130350,1723878641356,-500.0,0.00010684,2]
[335130351,1723878641366,-500.0,0.00010684,2]
[335130352,1723878641375,-500.0,0.00010684,2]
[335130353,1723878641384,-592.68292975,0.00010684,2]
[335130354,1723878641394,-500.0,0.00010684,2]
[335130355,1723878641403,-500.0,0.00010684,2]
[335130356,1723878641412,-500.0,0.00010684,2]
[335130357,1723878641422,-500.0,0.00010684,2]
[335130358,1723878641432,-500.0,0.00010684,2]
[335130359,1723878641441,-500.0,0.00010684,2]
[335130360,1723878641451,-316.76457863,0.00010684,2]
[335130361,1723878641460,-500.0,0.00010684,2]
[335130362,1723878641469,-504.11072218,0.00010684,2]
[335130363,1723878641478,-500.0,0.00010684,2]
[335130364,1723878641488,-500.0,0.00010684,2]
[335130365,1723878641498,-500.0,0.00010684,2]
[335130366,1723878641507,-500.0,0.00010684,2]
[335130367,1723878641517,-503.91495791,0.00010684,2]
[335130368,1723878641527,-500.0,0.00010684,2]
[335130369,1723878641536,-500.0,0.00010684,2]
[335130370,1723878641546,-500.0,0.00010684,2]
[335130371,1723878641555,-349.65171766,0.00010684,2]
[335130372,1723878641570,-150.34828234,0.00010684,2]
[335130373,1723878641579,-500.0,0.00010684,2]
[335130374,1723878641589,-500.0,0.00010684,2]
[335130375,1723878641598,-261.88964017,0.00010684,2]
[335130376,1723878641610,-114.81842237,0.00010684,2]
[335130377,1723878641620,-500.0,0.00010684,2]
[335130378,1723878641629,-500.0,0.00010684,2]
[335130379,1723878641639,-105.98518195,0.00010684,2]
[335130380,1723878641895,-394.01481805,0.00010684,2]
[335130381,1723878641904,-500.0,0.00010684,2]
[335130382,1723878641914,-500.0,0.00010684,2]
[335130383,1723878641924,-500.0,0.00010684,2]
[335130384,1723878641935,-500.0,0.00010684,2]
[335130385,1723878641947,-500.0,0.00010684,2]
[335130386,1723878641957,-500.0,0.00010684,2]
[335130387,1723878641966,-500.0,0.00010684,2]
[335130388,1723878641975,-500.0,0.00010684,2]
[335130389,1723878641985,-503.9425076,0.00010684,2]
[335130390,1723878641994,-502.63468519,0.00010684,2]
[335130391,1723878642005,-500.0,0.00010684,2]
[335130392,1723878642015,-372.50043314,0.00010684,2]
[335130393,1723878642024,-500.0,0.00010684,2]
[335130394,1723878642034,-501.70883082,0.00010684,2]
[335130395,1723878642043,-500.0,0.00010684,2]
[335130396,1723878642053,-500.0,0.00010684,2]
[335130397,1723878642062,-321.10051021,0.00010684,2]
[335130398,1723878642072,-500.0,0.00010684,2]
[335130399,1723878642082,-500.0,0.00010684,2]
[335130400,1723878642091,-500.0,0.00010684,2]
[335130401,1723878642101,-506.08443792,0.00010684,2]
[335130402,1723878642110,-500.0,0.00010684,2]
[335130403,1723878642124,-500.0,0.00010684,2]
[335130404,1723878642133,-500.0,0.00010684,2]
[335130405,1723878642143,-344.77964875,0.00010684,2]
[335130406,1723878642153,-500.0,0.00010684,2]
[335130407,1723878642163,-500.0,0.00010684,2]
[335130408,1723878642172,-500.0,0.00010684,2]
[335130409,1723878642182,-500.0,0.00010684,2]
[335130410,1723878642193,-500.0,0.00010684,2]